[Event "Germany Countries-chT Youth 2022"]
[Site "Wiesbaden"]
[Date "2022.10.03"]
[Round "6"]
[White "Krastev, Alexander"]
[Black "Bornholdt, Joa Max"]
[Result "1-0"]
[ECO "A00"]
[WhiteElo "2420"]
[BlackElo "2196"]
[Annotator "TA"]
[PlyCount "91"]
[EventDate "2022.09.28"]
[EventType "team-tourn"]
[EventRounds "7"]
[EventCountry "GER"]
[SourceTitle "playchess.com"]
[Source "ChessBase"]
[SourceQuality "1"]
[TimeControl "40/5400+30:1800+30"]

{[%evp 10,91,8,-9,21,-3,14,12,19,11,10,7,8,8,14,16,19,6,10,0,17,7,13,0,-8,-6,7,0,0,0,6,0,34,6,9,15,22,8,32,40,41,25,66,58,95,103,103,46,118,117,107,112,146,146,180,181,177,154,181,148,186,164,150,154,196,180,226,227,207,212,341,302,354,318,470,365,700,671,617,610,700,685,737,737]} 1. a3 {[%emt 0:00:09]} d5 {[%emt 0:01:32]} 2. Nf3 {[%emt 0:00:12]} Nf6 {[%emt 0:00:06]} 3. e3 {[%emt 0:00:10]} Bf5 {[%emt 0:03:01]} 4. c4 {[%emt 0:01:04]} c6 {[%emt 0:00:20]} 5. Nc3 {[%emt 0:00:18]} e6 {[%emt 0:00:33]} 6. d4 {[%emt 0:00:25]} Bd6 {[%emt 0:01:39] D12: Slav Defence: 3 Nf3 Nf6 4 e3 Bf5.} 7. Bd3 {[%emt 0:19:16]} Bxd3 {[%emt 0:05:21]} 8. Qxd3 {[%emt 0:00:04]} Nbd7 {[%emt 0:00:10] The position is equal.} 9. e4 {[%emt 0:08:06]} dxe4 {[%emt 0:20:01]} 10. Nxe4 {[%emt 0:00:14]} Nxe4 {[%emt 0:00:06]} 11. Qxe4 {[%emt 0:00:04] [#]} Qf6 $146 {[%emt 0:02:20]} ({Predecessor:} 11... h6 12. Bd2 Nf6 13. Qh4 Qc7 14. O-O Rd8 15. Rfe1 Be7 16. Qh3 O-O 17. Rad1 Rfe8 {0-1 (64) Nemergut,P (2011)-Veselovsky,J (2058) Slovakia 2015}) 12. O-O {[%emt 0:08:17]} Qg6 {[%emt 0:03:03]} 13. Qe2 {[%emt 0:01:13]} O-O {[%emt 0:00:09]} 14. Rd1 {[%emt 0:04:31]} Rfd8 {[%emt 0:08:20]} 15. Bg5 {[%emt 0:00:43]} Re8 {[%emt 0:02:10]} 16. Qd3 {[%emt 0:10:01]} Qxd3 {[%emt 0:11:26]} 17. Rxd3 {[%emt 0:00:02]} Bc7 {[%emt 0:00:17]} 18. Rad1 {[%emt 0:02:24]} f6 {[%emt 0:07:47]} 19. Be3 {[%emt 0:00:40]} Kf7 {[%emt 0:00:05]} 20. Kf1 {[%emt 0:12:33]} g5 {[%emt 0:06:29]} 21. h3 {[%emt 0:00:18]} h6 {[%emt 0:01:13]} 22. d5 {[%emt 0:07:37]} exd5 {[%emt 0:01:21]} 23. cxd5 {[%emt 0:00:05]} cxd5 {[%emt 0:01:03]} 24. Rxd5 {[%emt 0:00:12]} Nb6 {[%emt 0:01:53]} 25. Rc5 {[%emt 0:01:38]} Rac8 {[%emt 0:07:24]} 26. g4 {[%emt 0:01:00]} Bb8 {[%emt 0:05:06] [#]} 27. Rb5 $1 {[%emt 0:02:32]} Re7 {[%emt 0:06:13]} 28. Bc5 {[%emt 0:06:06]} (28. Bxb6 $16 axb6 29. Rxb6) 28... Rec7 {[%emt 0:02:04]} (28... a6 $1 $14) 29. Bxb6 $16 {White is much more active.} axb6 {[%emt 0:00:04]} 30. Rxb6 {[%emt 0:00:51]} Re7 {[%emt 0:01:55]} 31. Re1 {[%emt 0:02:08]} Rce8 {[%emt 0:01:27]} 32. Rxe7+ {[%emt 0:01:07]} Rxe7 $18 {[%emt 0:00:01][%mdl 4096] Endgame KRB-KRN} 33. Rb5 {[%emt 0:00:41]} Ba7 {[%emt 0:00:38]} 34. Nd2 {[%emt 0:01:18]} Kg6 {[%emt 0:00:38]} 35. f3 {[%emt 0:02:57]} Bd4 {[%emt 0:00:13]} 36. b3 {[%emt 0:01:18]} Rd7 {[%emt 0:01:07]} 37. Ke2 {[%emt 0:00:36]} h5 {[%emt 0:00:16]} (37... b6 $142 38. Nc4 Re7+ 39. Kd3 Bg1) 38. a4 {[%emt 0:01:12]} hxg4 {[%emt 0:00:31]} 39. hxg4 {[%emt 0:00:06]} ({Resist} 39. fxg4 $6 Re7+ 40. Kf1 Rh7 $16) 39... Be5 {[%emt 0:00:11]} (39... b6 {was necessary.} 40. b4 Ra7) 40. Ne4 {[%emt 0:03:32]} Bf4 {[%emt 0:00:40]} 41. Rb6 {[%emt 0:07:19]} Be5 {[%emt 0:00:22]} (41... Rf7 $142 42. b4 Bb8) 42. Nc5 {[%emt 0:01:39]} Rh7 {[%emt 0:00:07]} (42... Rd5 43. Nd3 Bd4 44. Rxb7 Ra5) 43. Rxb7 {[%emt 0:00:38] White is clearly winning.} Rh2+ {[%emt 0:00:08]} 44. Kd3 {[%emt 0:00:21]} Rf2 {[%emt 0:00:22]} 45. Ne6 {[%emt 0:03:14] [#] Nf8+ would kill now.} f5 {[%emt 0:01:16]} 46. Nf8+ {[%emt 0:00:09] Weighted Error Value: White=0.11 (very precise) /Black=0.34} 1-0

[Event "Germany Countries-chT Youth 2022"]
[Site "Wiesbaden"]
[Date "2022.10.03"]
[Round "6"]
[White "Weishaeutel, Moritz"]
[Black "Holinka, Henning"]
[Result "1-0"]
[ECO "D00"]
[WhiteElo "2401"]
[BlackElo "2245"]
[Annotator "TA"]
[PlyCount "77"]
[EventDate "2022.09.28"]
[EventType "team-tourn"]
[EventRounds "7"]
[EventCountry "GER"]
[SourceTitle "playchess.com"]
[Source "ChessBase"]
[SourceQuality "1"]
[TimeControl "40/5400+30:1800+30"]

{[%evp 9,77,0,0,0,0,0,0,0,0,0,0,0,0,0,0,0,0,0,66,72,139,108,121,102,121,114,142,133,143,136,167,175,205,189,195,150,164,164,162,160,162,160,168,173,173,164,176,0,173,0,168,168,208,205,192,183,208,193,198,170,522,462,462,426,693,689,710,704,645,639]} 1. d4 {[%emt 0:00:02]} d5 {[%emt 0:00:06]} 2. Nc3 {[%emt 0:00:04]} Nf6 {[%emt 0:00:25]} 3. Bf4 {[%emt 0:00:05]} c5 {[%emt 0:00:19]} 4. e4 {[%emt 0:00:04]} cxd4 {[%emt 0:01:23]} 5. Qxd4 {[%emt 0:00:06]} Nc6 {[%emt 0:00:07]} 6. Bb5 {[%emt 0:00:03][%cal Re4d5] D00: 1 d4 d5: Unusual lines.} Bd7 {[%emt 0:00:15]} 7. Bxc6 {[%emt 0:00:04]} Bxc6 {[%emt 0:00:06]} 8. e5 {[%emt 0:00:03] The position is equal.} Nd7 {[%emt 0:00:13]} 9. e6 {[%emt 0:00:03]} fxe6 {[%emt 0:00:06]} 10. Nf3 {[%emt 0:00:03] aiming for 0-0-0.} Qb6 {[%emt 0:00:11]} 11. Qd2 d4 {[%emt 0:20:24]} 12. Qxd4 {[%emt 0:00:28] [#]} Qxd4 $146 {[%emt 0:01:02]} ({Predecessor:} 12... Bxf3 13. Qxb6 Nxb6 14. gxf3 g6 15. Be5 Rg8 16. O-O-O Bh6+ 17. Kb1 Nc4 18. Bg3 Nd2+ {1-0 (82) Strand,V (1933)-Kolimar,K (2195) Mamaia 2022}) 13. Nxd4 {[%emt 0:00:05]} e5 {[%emt 0:00:29]} (13... Bxg2 $11 14. Rg1 e5 15. Bxe5 Nxe5 16. Rxg2 O-O-O) 14. Nxc6 $14 {[%emt 0:00:13]} bxc6 {[%emt 0:04:38]} (14... exf4 $142 15. Nb4 O-O-O) 15. Bg3 {[%emt 0:02:37]} g6 {[%emt 0:09:38]} 16. O-O-O {[%emt 0:01:47]} O-O-O {[%emt 0:09:36]} 17. Rhe1 {[%emt 0:01:46]} Bg7 {[%emt 0:03:31]} 18. f3 {[%emt 0:04:02] White is much more active.} Rhf8 {[%emt 0:15:33]} 19. Kb1 {[%emt 0:10:10]} Rf5 {[%emt 0:07:22]} 20. Ne4 {[%emt 0:02:27][%cal Bc3e4,Be4c5,Bc5d3][%mdl 32]} Nb6 {[%emt 0:05:39]} 21. Rxd8+ {[%emt 0:00:46]} Kxd8 {[%emt 0:00:01]} 22. Nc5 {[%emt 0:00:57]} Kc8 {[%emt 0:04:11]} 23. Nd3 {[%emt 0:00:15]} Nd7 {[%emt 0:00:43]} 24. Re4 {[%emt 0:00:53]} a6 {[%emt 0:05:30]} 25. c3 {[%emt 0:05:25]} h5 {[%emt 0:03:39]} 26. Kc2 {[%emt 0:01:55]} Bf6 {[%emt 0:00:59]} 27. Bf2 {[%emt 0:03:14]} Bg5 {[%emt 0:01:24]} 28. Bg3 {[%emt 0:03:42]} Bf6 $1 {[%emt 0:00:58]} 29. Bf2 {[%emt 0:04:14]} Bg5 $1 {[%emt 0:00:20]} 30. Kd1 {[%emt 0:00:06]} Bf4 {[%emt 0:00:58]} 31. g3 {[%emt 0:00:51]} Bh6 {[%emt 0:01:56]} 32. Ke2 {[%emt 0:00:18]} Bg7 {[%emt 0:00:28]} 33. g4 {[%emt 0:11:48]} hxg4 {[%emt 0:02:18]} 34. fxg4 {[%emt 0:00:03]} Rg5 {[%emt 0:02:01]} (34... Rf7 {is a better chance.} 35. h4 Bf6) 35. Kf3 {[%emt 0:03:17] [#] Threatens to win with Nc5. White is clearly winning.} Nf6 {[%emt 0:00:35]} 36. Nc5 {[%emt 0:01:29]} Nxe4 {[%emt 0:00:49]} (36... e6 $142 37. h4 (37. Rc4 e4+ 38. Nxe4 Nxe4 $18) 37... Nxe4) 37. Nxe4 $18 {[%emt 0:00:04]} Rf5+ {[%emt 0:00:11]} 38. gxf5 {[%emt 0:00:06]} gxf5 {[%emt 0:00:05]} 39. Nc5 {[%emt 0:00:20] Weighted Error Value: White=0.20 (precise) /Black=0.30} 1-0

[Event "Germany Countries-chT Youth 2022"]
[Site "Wiesbaden"]
[Date "2022.10.03"]
[Round "6"]
[White "Färber, David"]
[Black "Grossmann, Piet"]
[Result "1-0"]
[ECO "C09"]
[WhiteElo "2354"]
[BlackElo "1945"]
[Annotator "TA"]
[PlyCount "71"]
[EventDate "2022.09.28"]
[EventType "team-tourn"]
[EventRounds "7"]
[EventCountry "GER"]
[SourceTitle "playchess.com"]
[Source "ChessBase"]
[SourceQuality "1"]
[TimeControl "40/5400+30:1800+30"]

{[%evp 27,71,47,49,44,39,39,43,28,46,-26,-26,-29,-28,-24,-35,-31,-35,-21,0,0,0,0,0,0,0,0,0,0,13,11,12,14,56,47,134,137,184,186,220,181,221,221,280,274,480,467]} 1. e4 {[%emt 0:00:03]} e6 {[%emt 0:00:04]} 2. d4 {[%emt 0:00:08]} d5 {[%emt 0:00:04]} 3. Nd2 {[%emt 0:00:08]} c5 {[%emt 0:00:34]} 4. Ngf3 {[%emt 0:00:17]} Nc6 {[%emt 0:00:13]} 5. exd5 {[%emt 0:00:11]} exd5 {[%emt 0:00:08]} 6. Bb5 {[%emt 0:00:11]} Bd6 {[%emt 0:00:12]} 7. dxc5 {[%emt 0:00:08]} Bxc5 {[%emt 0:00:05]} 8. O-O {[%emt 0:00:11]} Nge7 {[%emt 0:00:04]} 9. Nb3 {[%emt 0:00:16]} Bd6 {[%emt 0:00:05]} 10. Re1 {[%emt 0:00:11]} O-O {[%emt 0:00:06]} 11. Bd3 {[%emt 0:00:12]} h6 {[%emt 0:09:29]} 12. h3 {[%emt 0:00:27]} Nf5 {[%emt 0:00:39]} 13. c3 {[%emt 0:00:13]} Qf6 {[%emt 0:03:20]} 14. Bc2 {[%emt 0:01:05]} Rd8 {[%emt 0:02:16]} 15. Qd3 {[%emt 0:01:17] C09: French Tarrasch: 3...c5 4 exd5 exd5 5 Ngf3 Nc6.} g6 {[%emt 0:01:33]} 16. Bd2 {[%emt 0:02:56]} Be6 {[%emt 0:06:05]} 17. Rad1 {[%emt 0:15:02] White is slightly better.} Bf8 {[%emt 0:07:59] [#]} 18. Qb5 $146 {[%emt 0:19:51]} (18. Qe2 $14) ({Predecessor:} 18. Be3 Nxe3 19. Rxe3 Bf5 20. Qe2 Bxc2 21. Qxc2 Rd7 22. Red3 Rad8 23. Qd2 Ne5 24. Nxe5 Qxe5 {½-½ (56) Omelchenko,L-Herbrechtsmeier,C corr 1988}) 18... Nd6 $11 {[%emt 0:03:14]} 19. Qe2 {[%emt 0:04:15]} Re8 {[%emt 0:13:11]} 20. Be3 {[%emt 0:05:33]} Nc4 {[%emt 0:04:22]} 21. Bd3 {[%emt 0:01:20]} Nxe3 {[%emt 0:02:36]} 22. fxe3 {[%emt 0:00:37]} Bf5 {[%emt 0:05:44]} 23. Bxf5 {[%emt 0:04:18]} Qxf5 {[%emt 0:00:45]} 24. Qb5 {[%emt 0:00:23][%csl LRb7,LRd5]} Rad8 {[%emt 0:04:27]} 25. Qxb7 {[%emt 0:08:22]} Ne5 {[%emt 0:00:46]} 26. Nbd4 {[%emt 0:01:04]} Nxf3+ {[%emt 0:02:10]} 27. Nxf3 {[%emt 0:00:06]} Bc5 {[%emt 0:02:34]} 28. Nd4 {[%emt 0:05:20]} Qg5 {[%emt 0:01:33]} 29. Qb5 $36 {[%emt 0:05:44][%mdl 2048] White has the initiative.} Bd6 {[%emt 0:12:21]} 30. Nf3 {[%emt 0:05:51][%csl LRd5,LRg5]} Qg3 {[%emt 0:02:43]} (30... Qf5 $14) 31. Rxd5 $16 {[%emt 0:05:36]} Rb8 {[%emt 0:00:40]} (31... Bc7 $16 {was called for.} 32. e4 g5) 32. Qe2 $18 {[%emt 0:03:25]} Bf4 {[%emt 0:05:32]} 33. Rd3 {[%emt 0:03:13]} g5 {[%emt 0:04:40]} 34. b3 {[%emt 0:01:46]} h5 {[%emt 0:01:21]} 35. Qf2 {[%emt 0:00:43]} g4 $2 {[%emt 0:01:18] [#]} (35... Bc7 {is a better defense.} 36. Rd7 Qxf2+ 37. Kxf2 Rbc8) 36. exf4 {[%emt 0:00:23] Weighted Error Value: White=0.08 (flawless) /Black=0.33} 1-0

[Event "Germany Countries-chT Youth 2022"]
[Site "Wiesbaden"]
[Date "2022.10.03"]
[Round "6"]
[White "Boder, Jan"]
[Black "Stelmaszyk, Nico"]
[Result "0-1"]
[ECO "A14"]
[WhiteElo "2341"]
[BlackElo "2355"]
[Annotator "TA"]
[PlyCount "140"]
[EventDate "2022.09.28"]
[EventType "team-tourn"]
[EventRounds "7"]
[EventCountry "GER"]
[SourceTitle "playchess.com"]
[Source "ChessBase"]
[SourceQuality "1"]
[TimeControl "40/5400+30:1800+30"]

{[%evp 12,140,28,-1,16,23,0,14,12,-6,-11,-17,-19,-23,-40,-19,-9,-62,-69,-55,75,50,41,15,48,25,14,32,80,79,93,85,75,66,93,91,77,37,46,47,37,45,32,0,0,-489,-461,-436,-447,-429,-281,-291,-291,-291,-291,-291,-284,-319,-314,-302,-279,-274,-277,-287,-263,-256,-119,-118,-112,-119,-119,-118,-116,-112,-112,-112,-112,-112,-116,-220,-218,-220,-218,-217,-216,-200,-193,-193,-145,-318,-282,-460,-411,-475,-487,-524,-421,-574,-544,-481,-379,-934,-368,-905,-878,-724,-659,-527,-458,-4133,-4133,-4129,-4125,-5096,-5089,-29978,-29979,-29978,-29980,-29980,-29981,-29981,-29982,-29982,-29983,-29987,-29988,-29988,-29989,-29990,-29991]} 1. Nf3 {[%emt 0:00:02]} Nf6 {[%emt 0:00:05]} 2. c4 {[%emt 0:00:07]} e6 {[%emt 0:00:06]} 3. g3 {[%emt 0:00:05]} d5 {[%emt 0:00:05]} 4. Bg2 {[%emt 0:00:03]} Be7 {[%emt 0:00:04]} 5. O-O {[%emt 0:00:06]} O-O {[%emt 0:00:04]} 6. d4 {[%emt 0:00:04]} dxc4 {[%emt 0:00:05]} 7. Qc2 {[%emt 0:00:08]} b6 {[%emt 0:00:05] E05: Open Catalan: 5 Nf3 Be7.} 8. Ne5 {[%emt 0:05:00]} Qxd4 {[%emt 0:00:37]} 9. Bxa8 {[%emt 0:01:06]} Qxe5 {[%emt 0:00:05] The position is equal.} 10. Bf4 {[%emt 0:01:03]} Qh5 {[%emt 0:00:10]} 11. Bf3 {[%emt 0:07:21]} Ng4 {[%emt 0:00:05]} 12. Bxg4 {[%emt 0:00:04]} Qxg4 {[%emt 0:00:04]} 13. f3 {[%emt 0:01:58]} Qh3 {[%emt 0:09:14]} (13... Bc5+ 14. Kg2 Qg6 15. Qxg6 (15. Qxc4 e5 $15) 15... hxg6 16. Nc3 $14) 14. Nd2 {[%emt 0:01:52]} (14. Nc3 $11) 14... Bc5+ $15 {[%emt 0:02:24]} 15. Kh1 {[%emt 0:00:49] [#]} b5 $146 {[%emt 0:11:25]} (15... e5 $1 $15 16. Bxe5 Re8 17. Nxc4 Nc6) ({Predecessor:} 15... e5 16. Bxe5 Re8 17. Nxc4 Nc6 18. Rfd1 Re6 19. e4 Ba6 20. b4 Bxb4 21. Bxc7 Qh5 {1-0 (33) Gaboyan,S (2253)-Miturova,M (2248) Terme Catez 2021}) 16. Ne4 {[%emt 0:04:47]} Bb6 {[%emt 0:04:50]} 17. a4 {[%emt 0:01:24]} e5 {[%emt 0:04:13]} 18. Bxe5 {[%emt 0:04:42]} Nc6 {[%emt 0:00:43] The board is on fire.} 19. Bc3 {[%emt 0:07:55]} a6 {[%emt 0:20:58]} (19... b4 $14 {is more appropriate.} 20. Bd2 a5) 20. axb5 {[%emt 0:01:40]} axb5 {[%emt 0:00:12]} 21. Qd2 $1 {[%emt 0:02:57][%cal Oc3g7]} Qh5 {[%emt 0:14:15]} 22. Rfd1 {[%emt 0:09:22]} h6 {[%emt 0:05:48]} 23. g4 $1 {[%emt 0:10:46]} Qg6 {[%emt 0:02:46]} 24. Qd5 {[%emt 0:01:50]} b4 {[%emt 0:08:19]} 25. Be1 {[%emt 0:01:50]} Re8 {[%emt 0:01:35]} 26. Ra8 $1 {[%emt 0:01:59]} Kh7 $1 {[%emt 0:02:29]} 27. Bg3 {[%emt 0:04:57] Prevents Re5.} ({Wrong is} 27. Qxc4 $2 Bxg4 $1 28. fxg4 (28. Ng5+ $2 Qxg5 29. Bh4 Qxh4 $19) 28... Rxa8 $19) 27... Rxe4 $40 {[%emt 0:05:34][%mdl 128] Black attacks.} 28. fxe4 $4 {[%emt 0:02:11][%mdl 8192]} (28. Qxe4 $11 {and White stays safe.} Qxe4 29. fxe4 Bxg4 30. Kg2) 28... Ne7 $1 $19 {[%emt 0:03:41]} 29. Qxc4 {[%emt 0:06:34]} Bb7 {[%emt 0:00:13]} 30. h3 {[%emt 0:00:16] And now Re8 would win.} Qxe4+ {[%emt 0:01:13]} (30... Bxa8 $2 {too greedy.} 31. Kh2 $19) 31. Qxe4+ {[%emt 0:00:12]} Bxe4+ {[%emt 0:00:08] A strong pair of Bishops.} 32. Kh2 {[%emt 0:00:05]} Bxa8 {[%emt 0:00:06]} 33. Rd7 {[%emt 0:00:40]} Nd5 {[%emt 0:01:51]} 34. Rxf7 {[%emt 0:01:30]} Kg8 {[%emt 0:00:49]} 35. Rd7 {[%emt 0:00:55] aiming for Rd8+.} Bc6 {[%emt 0:00:16]} 36. Rd8+ {[%emt 0:00:12]} Kf7 {[%emt 0:00:17]} 37. Be5 {[%emt 0:05:17]} Ne3 {[%emt 0:01:27][%cal Re3f1]} 38. Bd4 {[%emt 0:00:56]} Bxd4 {[%emt 0:02:00]} (38... Ke7 $19 {is more deadly.} 39. Bxb6 Nf1+ 40. Kg1 Kxd8) 39. Rxd4 $17 {[%emt 0:00:03]} Nd5 $1 {[%emt 0:00:55]} 40. e4 {[%emt 0:01:37]} Nf6 {[%emt 0:00:15]} 41. Rxb4 {[%emt 0:32:39]} Bxe4 {[%emt 0:30:09] Black is more active.} 42. Ra4 {[%emt 0:04:42]} Ke6 {[%emt 0:00:00]} 43. Kg3 {[%emt 0:00:00]} Bd5 {[%emt 0:00:00]} 44. Ra7 {[%emt 0:00:00]} Kd6 {[%emt 0:00:00]} 45. h4 {[%emt 0:00:00]} (45. Kf4 $17) 45... Be6 $19 {[%emt 0:00:00]} 46. g5 {[%emt 0:00:00]} hxg5 {[%emt 0:00:00]} 47. hxg5 {[%emt 0:00:00]} Nh5+ {[%emt 0:00:00]} 48. Kf3 {[%emt 0:00:00] [#]} g6 $1 {[%emt 0:00:00]} 49. Ra6+ {[%emt 0:00:00]} Ke5 {[%emt 0:00:00]} 50. Ra5+ $2 {[%emt 0:00:00] [#] Now White is beyond hope.} (50. Kf2 $17 {was called for.}) 50... Bd5+ $1 {[%emt 0:00:00]} 51. Kg4 $2 {[%emt 0:00:00]} (51. Kf2 {might work better.}) 51... Ng7 {[%emt 0:00:00]} 52. Ra7 {[%emt 0:00:00]} Ne6 {[%emt 0:00:00]} 53. Ra1 {[%emt 0:00:00]} Be4 {[%emt 0:00:00]} 54. Ra5+ {[%emt 0:00:00]} Kd4 {[%emt 0:00:00]} 55. Ra4+ {[%emt 0:00:00]} Kd3 {[%emt 0:00:00] Hoping for ...c5.} 56. Kh4 $2 {[%emt 0:00:00]} (56. Ra3+ Kd4 57. Rg3) 56... Bf5 $2 {[%emt 0:00:00]} (56... c5 57. Kg3 Bf5) 57. Ra7 $2 {[%emt 0:00:00]} (57. Ra3+ Ke4 58. Kg3) 57... c5 {[%emt 0:00:00]} 58. Rb7 {[%emt 0:00:00]} c4 {[%emt 0:00:00] White must now prevent ...Nc5.} 59. Rb4 {[%emt 0:00:00]} Nc5 {[%emt 0:00:00] ...Kd4 is the strong threat.} 60. Rb5 {[%emt 0:00:00]} (60. Kg3 $142 Be4 61. Kf2) 60... Ne4 {[%emt 0:00:00]} 61. Rd5+ {[%emt 0:00:00]} Kc2 {[%emt 0:00:00]} 62. Rd4 {[%emt 0:00:00]} Nd2 {[%emt 0:00:00] ( -> ...Nf3+)} 63. Rf4 {[%emt 0:00:00] Prevents Nf3+.} Kxb2 {[%emt 0:01:46] Black mates.} 64. Rxf5 {[%emt 0:00:00]} gxf5 {[%emt 0:00:06] KN-KP} 65. g6 {[%emt 0:00:00]} Ne4 {[%emt 0:00:08]} ({Stronger than} 65... c3 66. g7 $11) 66. g7 {[%emt 0:00:00]} Nf6 {[%emt 0:00:15]} 67. Kg5 {[%emt 0:00:00]} Ng8 {[%emt 0:00:06]} 68. Kxf5 {[%emt 0:00:00]} c3 {[%emt 0:00:07][%cal Bc4c3,Bc3c2][%mdl 32]} 69. Kg6 {[%emt 0:00:00]} c2 {[%emt 0:00:04]} 70. Kf7 {[%emt 0:00:00]} Nh6+ {[%emt 0:00:06] Weighted Error Value: White=0.50/Black=0.24 (precise)} 0-1